fUSD/lending_fUSD_20240425
["ID","MTS","AMOUNT","RATE_DAILY","PERIOD"]
[323511647,1714060254830,-150.0,0.00011538,2]
[323511648,1714060254840,-150.0,0.00011538,2]
[323511649,1714060254849,-150.0,0.00011538,2]
[323511650,1714060254858,-500.0,0.00011541,2]
[323511651,1714060254868,-1233.01,0.00011541,2]
[323511652,1714060254877,-500.0,0.00011541,2]
[323511653,1714060254887,-1177.58,0.00011541,2]
[323511654,1714060254896,-721.68,0.00011541,2]
[323511655,1714060254906,-590.14,0.00011541,2]
[323511656,1714060254915,-500.0,0.00011541,2]
[323511657,1714060254924,-500.0,0.00011541,2]
[323511658,1714060254933,-500.0,0.00011541,2]
[323511659,1714060254942,-613.13,0.00011541,2]
[323511660,1714060254952,-6361.02,0.00011541,2]
[323511661,1714060254962,-610.2,0.00011541,2]
[323511662,1714060254971,-500.0,0.00011541,2]
[323511663,1714060254980,-500.0,0.00011541,2]
[323511664,1714060254992,-4125.24,0.00011541,2]
[323511665,1714060255001,-4677.11,0.00011541,2]
[323511666,1714060255011,-906.13,0.00011541,2]
[323511667,1714060255021,-642.74,0.00011541,2]
[323511668,1714060255031,-1906.6,0.00011541,2]
[323511669,1714060255039,-500.0,0.00011541,2]
[323511670,1714060255049,-505.18,0.00011541,2]
[323511671,1714060255058,-500.0,0.00011541,2]
[323511672,1714060255068,-2378.51,0.00011541,2]
[323511673,1714060255077,-721.8,0.00011541,2]
[323511674,1714060255088,-500.0,0.00011541,2]
[323511675,1714060255099,-500.0,0.00011541,2]
[323511676,1714060255109,-500.0,0.00011541,2]
[323511677,1714060255121,-500.0,0.00011541,2]
[323511678,1714060255132,-713.06,0.00011541,2]
[323511679,1714060255142,-897.19,0.00011542,2]
[323511680,1714060255153,-540.6,0.00011542,2]
[323511681,1714060255164,-520.48,0.00011542,2]
[323511682,1714060255174,-500.0,0.00011542,2]
[323511683,1714060255184,-500.0,0.00011542,2]
[323511684,1714060255193,-535.02,0.00011542,2]
[323511685,1714060255203,-500.0,0.00011542,2]
[323511686,1714060255213,-500.0,0.00011542,2]
[323511687,1714060255222,-596.72,0.00011542,2]
[323511688,1714060255232,-500.0,0.00011542,2]
[323511689,1714060255245,-539.3,0.00011542,2]
[323511690,1714060255254,-655.81,0.00011542,2]
[323511691,1714060255263,-500.0,0.00011542,2]
[323511692,1714060255272,-370.42095152,0.00011542,2]
[323511693,1714060255281,-500.0,0.00011542,2]
[323511694,1714060255291,-500.0,0.00011542,2]
[323511695,1714060255300,-500.0,0.00011542,2]
[323511696,1714060255310,-643.38,0.00011542,2]
[323511697,1714060255320,-500.0,0.00011542,2]
[323511698,1714060255331,-500.0,0.00011542,2]
[323511699,1714060255340,-500.0,0.00011542,2]
[323511700,1714060255350,-500.0,0.00011542,2]
[323511701,1714060255359,-500.0,0.00011542,2]
[323511702,1714060255370,-500.0,0.00011542,2]
[323511703,1714060255380,-500.0,0.00011542,2]
[323511704,1714060255389,-500.0,0.00011542,2]
[323511705,1714060255399,-500.0,0.00011542,2]
[323511706,1714060255409,-500.0,0.00011542,2]
[323511707,1714060255419,-500.0,0.00011542,2]
[323511708,1714060255429,-500.0,0.00011542,2]
[323511709,1714060255439,-856.62,0.00011542,2]
[323511710,1714060255449,-500.0,0.00011542,2]
[323511711,1714060255459,-500.0,0.00011542,2]
[323511712,1714060255469,-500.0,0.00011542,2]
[323511713,1714060255478,-500.0,0.00011542,2]
[323511714,1714060255489,-150.0,0.00011542,2]
[323511715,1714060255499,-500.0,0.00011542,2]
[323511716,1714060255508,-500.0,0.00011542,2]
[323511717,1714060255517,-500.0,0.00011542,2]
[323511718,1714060255527,-500.0,0.00011542,2]
[323511719,1714060255536,-815.64,0.00011542,2]
[323511720,1714060255545,-502.32250162,0.00011542,2]
[323511721,1714060255555,-500.0,0.00011542,2]
[323511722,1714060255564,-500.0,0.00011542,2]
[323511723,1714060255574,-500.0,0.00011542,2]
[323511724,1714060255584,-500.0,0.00011542,2]
[323511725,1714060255594,-408.07816839,0.00011542,2]
[323511726,1714060255604,-500.0,0.00011542,2]
[323511727,1714060255614,-639.78,0.00011542,2]
[323511728,1714060255623,-500.0,0.00011542,2]
[323511729,1714060255633,-500.0,0.00011542,2]
[323511730,1714060255643,-500.0,0.00011542,2]
[323511731,1714060255652,-500.0,0.00011542,2]
[323511732,1714060255662,-693.34,0.00011542,2]
[323511733,1714060255672,-610.96,0.00011542,2]
[323511734,1714060255682,-315.44,0.00011542,2]
[323511735,1714060255692,-500.0,0.00011542,2]
[323511736,1714060255702,-500.0,0.00011542,2]
[323511737,1714060255712,-500.0,0.00011542,2]
[323511738,1714060255721,-500.0,0.00011542,2]
[323511739,1714060255730,-500.0,0.00011542,2]
[323511740,1714060255741,-500.0,0.00011542,2]
[323511741,1714060255751,-500.0,0.00011542,2]
[323511742,1714060255760,-500.0,0.00011542,2]
[323511743,1714060255769,-16171.62,0.00011542,2]
[323511744,1714060255778,-500.0,0.00011542,2]
[323511745,1714060255788,-500.0,0.00011542,2]
[323511746,1714060255797,-500.0,0.00011542,2]
[323511747,1714060255806,-1957.24,0.00011542,2]
[323511748,1714060255816,-244.74786915,0.00011542,2]
[323511749,1714060255825,-500.0,0.00011542,2]
[323511750,1714060255834,-500.0,0.00011542,2]
[323511751,1714060255843,-500.0,0.00011542,2]
[323511752,1714060255852,-636.92,0.00011542,2]
[323511753,1714060255861,-500.0,0.00011542,2]
[323511754,1714060255870,-259.37872882,0.00011542,2]
[323511755,1714060255880,-487.31,0.00011542,2]
[323511756,1714060255890,-767.19,0.00011542,2]
[323511757,1714060255900,-590.59,0.00011542,2]
[323511758,1714060255909,-719.05,0.00011542,2]
[323511759,1714060255918,-628.9,0.00011542,2]
[323511760,1714060255927,-500.0,0.00011542,2]
[323511761,1714060255938,-716.78,0.00011542,2]
[323511762,1714060255947,-500.0,0.00011542,2]
[323511763,1714060255958,-1431.93,0.00011542,2]
[323511764,1714060255967,-500.0,0.00011542,2]
[323511765,1714060255977,-386.49790602,0.00011542,2]
[323511766,1714060255988,-1807.23,0.00011542,2]
[323511767,1714060255997,-516.49813209,0.00011542,2]
[323511768,1714060256007,-500.0,0.00011542,2]
[323511769,1714060256017,-509.15,0.00011542,2]
[323511770,1714060256027,-500.0,0.00011542,2]
[323511771,1714060256037,-577.70999594,0.00011542,2]
[323511772,1714060256046,-500.0,0.00011542,2]
[323511773,1714060256056,-500.0,0.00011542,2]
[323511774,1714060256066,-28280.56,0.00011542,2]
[323511775,1714060256075,-500.0,0.00011542,2]
[323511776,1714060256085,-500.0,0.00011542,2]
[323511777,1714060256095,-2917.4,0.00011542,2]
[323511778,1714060256105,-500.0,0.00011542,2]
[323511779,1714060256116,-810.12,0.00011542,2]
[323511780,1714060256126,-500.0,0.00011542,2]
[323511781,1714060256136,-825.68,0.00011542,2]
[323511782,1714060256146,-500.0,0.00011542,2]
[323511783,1714060256156,-500.0,0.00011542,2]
[323511784,1714060256167,-500.0,0.00011542,2]
[323511785,1714060256177,-577.92,0.00011542,2]
[323511786,1714060256187,-4602.93,0.00011542,2]
[323511787,1714060256346,-500.0,0.00011542,2]
[323511788,1714060256366,-500.0,0.00011542,2]
[323511789,1714060256376,-500.0,0.00011542,2]
[323511790,1714060256387,-500.0,0.00011542,2]
[323511791,1714060256396,-500.0,0.00011542,2]
[323511792,1714060256406,-489.06,0.00011542,2]
[323511793,1714060256415,-500.0,0.00011542,2]
[323511794,1714060256425,-500.0,0.00011542,2]
[323511795,1714060256434,-500.0,0.00011542,2]
[323511796,1714060256444,-2207.86,0.00011542,2]
[323511797,1714060256492,-1095.76,0.00011542,2]
[323511798,1714060256501,-1600.93,0.00011542,2]
[323511799,1714060256511,-511.99,0.00011542,2]
[323511800,1714060256520,-500.0,0.00011542,2]
[323511801,1714060256530,-3217.68,0.00011542,2]
[323511802,1714060256539,-500.0,0.00011542,2]
[323511803,1714060256549,-500.0,0.00011542,2]
[323511804,1714060256558,-823.38,0.00011542,2]
[323511805,1714060256568,-1140.12,0.00011542,2]
[323511806,1714060256578,-154.07,0.00011542,2]
[323511807,1714060256587,-3439.52,0.00011542,2]
[323511808,1714060256596,-500.0,0.00011542,2]
[323511809,1714060256606,-500.0,0.00011542,2]
[323511810,1714060256616,-500.0,0.00011542,2]
[323511811,1714060256624,-500.0,0.00011542,2]
[323511812,1714060256634,-500.0,0.00011542,2]
[323511813,1714060256643,-500.0,0.00011542,2]
[323511814,1714060256653,-537.33,0.00011542,2]
[323511815,1714060256662,-1058.41,0.00011542,2]
[323511816,1714060256672,-500.0,0.00011542,2]
[323511817,1714060256681,-636.28,0.00011542,2]
[323511818,1714060256691,-662.57,0.00011542,2]
[323511819,1714060256700,-500.0,0.00011542,2]
[323511820,1714060256710,-507.86,0.00011542,2]
[323511821,1714060256720,-500.0,0.00011542,2]
[323511822,1714060256729,-500.0,0.00011542,2]
[323511823,1714060256740,-750.89,0.00011542,2]
[323511824,1714060256749,-500.0,0.00011542,2]
[323511825,1714060256758,-500.0,0.00011542,2]
[323511826,1714060256768,-500.0,0.00011542,2]
[323511827,1714060256778,-500.0,0.00011542,2]
[323511828,1714060256789,-2306.09,0.00011542,2]
[323511829,1714060256799,-641.89746759,0.00011542,2]
[323511830,1714060256808,-752.47,0.00011542,2]
[323511831,1714060256818,-500.0,0.00011542,2]
[323511832,1714060256828,-500.0,0.00011542,2]
[323511833,1714060256837,-1706.92,0.00011542,2]
[323511834,1714060256848,-500.0,0.00011542,2]
[323511835,1714060256857,-500.0,0.00011542,2]
[323511836,1714060256866,-500.0,0.00011542,2]
[323511837,1714060256875,-221.70240603,0.00011542,2]
[323511838,1714060256885,-1945.0,0.00011542,2]
[323511839,1714060256895,-1464.21,0.00011542,2]
[323511840,1714060256904,-500.0,0.00011542,2]
[323511841,1714060256914,-500.0,0.00011542,2]
[323511842,1714060256923,-497.3370405,0.00011542,2]
[323511843,1714060256932,-1313.42,0.00011542,2]
[323511844,1714060256942,-657.74,0.00011542,2]
[323511845,1714060256952,-1936.87,0.00011542,2]
[323511846,1714060256962,-2744.8,0.00011542,2]
[323511847,1714060256972,-500.0,0.00011542,2]
[323511848,1714060256982,-520.52,0.00011542,2]
[323511849,1714060256995,-500.0,0.00011542,2]
[323511850,1714060257005,-500.0,0.00011542,2]
[323511851,1714060257015,-500.0,0.00011542,2]
[323511852,1714060257025,-500.0,0.00011542,2]
[323511853,1714060257036,-500.0,0.00011542,2]
[323511854,1714060257047,-582.33,0.00011542,2]
[323511855,1714060257057,-500.0,0.00011542,2]
[323511856,1714060257066,-500.0,0.00011542,2]
[323511857,1714060257077,-500.0,0.00011542,2]
[323511858,1714060257086,-500.0,0.00011542,2]
[323511859,1714060257096,-563.72,0.00011542,2]
[323511860,1714060257106,-500.0,0.00011542,2]
[323511861,1714060257118,-500.0,0.00011542,2]
[323511862,1714060257128,-4921.23,0.00011542,2]
[323511863,1714060257137,-310.7209177,0.00011542,2]
[323511864,1714060257147,-500.0,0.00011542,2]
[323511865,1714060257157,-500.0,0.00011542,2]
[323511866,1714060257168,-1489.14,0.00011542,2]
[323511867,1714060257178,-1405.96,0.00011542,2]
[323511868,1714060257187,-500.0,0.00011542,2]
[323511869,1714060257198,-500.0,0.00011542,2]
[323511870,1714060257208,-500.0,0.00011542,2]
[323511871,1714060257218,-500.0,0.00011542,2]
[323511872,1714060257228,-672.8,0.00011542,2]
[323511873,1714060257241,-509.42,0.00011542,2]
[323511874,1714060257250,-718.59,0.00011542,2]
[323511875,1714060257260,-613.92,0.00011542,2]
[323511876,1714060257269,-500.0,0.00011542,2]
[323511877,1714060257279,-690.2,0.00011542,2]
[323511878,1714060257289,-500.0,0.00011542,2]
[323511879,1714060257299,-500.0,0.00011542,2]
[323511880,1714060257309,-500.0,0.00011542,2]
[323511881,1714060257318,-11579.02,0.00011542,2]
[323511882,1714060257328,-896.53,0.00011542,2]
[323511883,1714060257337,-836.18,0.00011542,2]
[323511884,1714060257346,-500.0,0.00011542,2]
[323511885,1714060257356,-207.85411425,0.00011543,2]
[323511886,1714060257365,-500.0,0.00011543,2]
[323511887,1714060257375,-500.0,0.00011543,2]
[323511888,1714060257383,-500.0,0.00011543,2]
[323511889,1714060257393,-500.0,0.00011543,2]
[323511890,1714060257402,-500.0,0.00011543,2]
[323511891,1714060257411,-500.0,0.00011543,2]
[323511892,1714060257421,-342.1695503,0.00011543,2]
[323511893,1714060257430,-500.0,0.00011543,2]
[323511894,1714060257439,-500.0,0.00011543,2]
[323511895,1714060257449,-500.0,0.00011543,2]
[323511896,1714060257458,-500.0,0.00011543,2]
[323511897,1714060257468,-500.0,0.00011543,2]
[323511898,1714060257478,-554.04,0.00011543,2]
[323511899,1714060257490,-500.0,0.00011543,2]
[323511900,1714060257499,-500.0,0.00011543,2]
[323511901,1714060257508,-500.0,0.00011543,2]
[323511902,1714060257517,-500.0,0.00011543,2]
[323511903,1714060257526,-500.0,0.00011543,2]
[323511904,1714060257535,-500.0,0.00011543,2]
[323511905,1714060257545,-218.34935671,0.00011543,2]
[323511906,1714060257555,-500.0,0.00011543,2]
[323511907,1714060257564,-500.0,0.00011543,2]
[323511908,1714060257573,-500.0,0.00011543,2]
[323511909,1714060257583,-500.0,0.00011543,2]
[323511910,1714060257593,-500.0,0.00011543,2]
[323511911,1714060257603,-500.0,0.00011543,2]
[323511912,1714060257612,-500.0,0.00011543,2]
[323511913,1714060257622,-500.0,0.00011543,2]
[323511914,1714060257631,-500.0,0.00011543,2]
[323511915,1714060257640,-500.0,0.00011543,2]
[323511916,1714060257650,-595.49,0.00011543,2]
[323511917,1714060257660,-500.0,0.00011543,2]
[323511918,1714060257669,-627.12,0.00011543,2]
[323511919,1714060257679,-500.0,0.00011543,2]
[323511920,1714060257689,-500.0,0.00011543,2]
[323511921,1714060257699,-525.06,0.00011543,2]
[323511922,1714060257708,-500.0,0.00011543,2]
[323511923,1714060257718,-500.0,0.00011543,2]
[323511924,1714060257727,-505.17,0.00011543,2]
[323511925,1714060257739,-500.0,0.00011543,2]
[323511926,1714060257749,-500.0,0.00011543,2]
[323511927,1714060257760,-500.0,0.00011543,2]
[323511928,1714060257769,-500.0,0.00011543,2]
[323511929,1714060257779,-500.0,0.00011543,2]
[323511930,1714060257788,-1025.83,0.00011543,2]
[323511931,1714060257797,-500.0,0.00011543,2]
[323511932,1714060257807,-500.0,0.00011543,2]
[323511933,1714060257816,-606.66,0.00011543,2]
[323511934,1714060257826,-662.43,0.00011543,2]
[323511935,1714060257835,-500.0,0.00011543,2]
[323511936,1714060257845,-500.0,0.00011543,2]
[323511937,1714060257854,-500.0,0.00011543,2]
[323511938,1714060257864,-500.0,0.00011543,2]
[323511939,1714060257874,-500.0,0.00011543,2]
[323511940,1714060257884,-500.0,0.00011543,2]
[323511941,1714060257893,-528.16,0.00011543,2]
[323511942,1714060257903,-500.0,0.00011543,2]
[323511943,1714060257912,-500.0,0.00011543,2]
[323511944,1714060257921,-500.0,0.00011543,2]
[323511945,1714060257931,-500.0,0.00011543,2]
[323511946,1714060257941,-500.0,0.00011543,2]
[323511947,1714060257950,-500.0,0.00011543,2]
[323511948,1714060257961,-500.0,0.00011543,2]
[323511949,1714060257971,-515.45,0.00011543,2]
[323511950,1714060257980,-500.0,0.00011543,2]
[323511951,1714060257991,-743.56,0.00011543,2]
[323511952,1714060258001,-500.0,0.00011543,2]
[323511953,1714060258010,-1177.91,0.00011543,2]
[323511954,1714060258020,-500.0,0.00011543,2]
[323511955,1714060258029,-500.0,0.00011543,2]
[323511956,1714060258039,-500.0,0.00011543,2]
[323511957,1714060258049,-500.0,0.00011543,2]
[323511958,1714060258059,-500.0,0.00011543,2]
[323511959,1714060258068,-151.49640628,0.00011543,2]
[323511960,1714060258078,-500.0,0.00011543,2]
[323511961,1714060258087,-796.23,0.00011543,2]
[323511962,1714060258096,-500.0,0.00011543,2]
[323511963,1714060258106,-709.05,0.00011543,2]
[323511964,1714060258116,-500.0,0.00011543,2]
[323511965,1714060258125,-500.0,0.00011543,2]
[323511966,1714060258135,-974.66,0.00011543,2]
[323511967,1714060258144,-633.17,0.00011543,2]
[323511968,1714060258155,-500.0,0.00011543,2]
[323511969,1714060258165,-500.0,0.00011543,2]
[323511970,1714060258174,-500.0,0.00011543,2]
[323511971,1714060258184,-500.0,0.00011543,2]
[323511972,1714060258193,-519.43,0.00011543,2]
[323511973,1714060258203,-500.0,0.00011543,2]
[323511974,1714060258214,-500.0,0.00011543,2]
[323511975,1714060258224,-500.0,0.00011543,2]
[323511976,1714060258239,-500.0,0.00011543,2]
[323511977,1714060258249,-500.0,0.00011543,2]
[323511978,1714060258259,-500.0,0.00011543,2]
[323511979,1714060258268,-500.0,0.00011543,2]
[323511980,1714060258278,-500.0,0.00011543,2]
[323511981,1714060258288,-500.0,0.00011543,2]
[323511982,1714060258297,-500.0,0.00011543,2]
[323511983,1714060258306,-500.0,0.00011543,2]
[323511984,1714060258316,-500.0,0.00011543,2]
[323511985,1714060258325,-500.0,0.00011543,2]
[323511986,1714060258335,-500.0,0.00011543,2]
[323511987,1714060258344,-500.0,0.00011543,2]
[323511988,1714060258353,-500.0,0.00011543,2]
[323511989,1714060258362,-500.0,0.00011543,2]
[323511990,1714060258372,-500.0,0.00011543,2]
[323511991,1714060258381,-500.0,0.00011543,2]
[323511992,1714060258391,-500.0,0.00011543,2]
[323511993,1714060258400,-500.0,0.00011543,2]
[323511994,1714060258409,-3419.75,0.00011543,2]
[323511995,1714060258419,-500.0,0.00011543,2]
[323511996,1714060258429,-500.0,0.00011543,2]
[323511997,1714060258439,-500.0,0.00011543,2]
[323511998,1714060258448,-500.0,0.00011543,2]
[323511999,1714060258458,-500.0,0.00011543,2]
[323512000,1714060258467,-893.92,0.00011543,2]
[323512001,1714060258477,-500.0,0.00011543,2]
[323512002,1714060258488,-1046.58,0.00011543,2]
[323512003,1714060258499,-500.0,0.00011543,2]
[323512004,1714060258508,-500.0,0.00011543,2]
[323512005,1714060258517,-500.0,0.00011543,2]
[323512006,1714060258528,-500.0,0.00011543,2]
[323512007,1714060258538,-500.0,0.00011543,2]
[323512008,1714060258547,-500.0,0.00011543,2]
[323512009,1714060258557,-500.0,0.00011543,2]
[323512010,1714060258567,-500.0,0.00011543,2]
[323512011,1714060258576,-500.0,0.00011543,2]
[323512012,1714060258586,-500.0,0.00011543,2]
[323512013,1714060258595,-500.0,0.00011543,2]
[323512014,1714060258605,-500.0,0.00011543,2]
[323512015,1714060258614,-500.0,0.00011543,2]
[323512016,1714060258623,-500.0,0.00011543,2]
[323512017,1714060258632,-500.0,0.00011543,2]
[323512018,1714060258641,-500.0,0.00011543,2]
[323512019,1714060258651,-500.0,0.00011543,2]
[323512020,1714060258660,-500.0,0.00011543,2]
[323512021,1714060258670,-793.21,0.00011543,2]
[323512022,1714060258679,-534.76,0.00011543,2]
[323512023,1714060258688,-500.0,0.00011543,2]
[323512024,1714060258697,-500.0,0.00011543,2]
[323512025,1714060258707,-500.0,0.00011543,2]
[323512026,1714060258716,-655.42,0.00011543,2]
[323512027,1714060258725,-500.0,0.00011543,2]
[323512028,1714060258735,-500.0,0.00011543,2]
[323512029,1714060258747,-500.0,0.00011543,2]
[323512030,1714060258758,-500.0,0.00011543,2]
[323512031,1714060258768,-500.0,0.00011543,2]
[323512032,1714060258778,-500.0,0.00011543,2]
[323512033,1714060258787,-1829.3,0.00011543,2]
[323512034,1714060258853,-500.0,0.00011543,2]
[323512035,1714060258863,-500.0,0.00011543,2]
[323512036,1714060258873,-500.0,0.00011543,2]
[323512037,1714060258883,-500.0,0.00011543,2]
[323512038,1714060258892,-500.0,0.00011543,2]
[323512039,1714060258902,-500.0,0.00011543,2]
[323512040,1714060258911,-500.0,0.00011543,2]
[323512041,1714060258921,-500.0,0.00011543,2]
[323512042,1714060258930,-5311.09,0.00011543,2]
[323512043,1714060258940,-500.0,0.00011543,2]
[323512044,1714060258949,-1639.63,0.00011543,2]
[323512045,1714060258961,-6842.7,0.00011543,2]
[323512046,1714060258971,-500.0,0.00011543,2]
[323512047,1714060258980,-500.0,0.00011543,2]
[323512048,1714060258991,-242.17630313,0.00011544,2]
[323512049,1714060259000,-500.0,0.00011544,2]
[323512050,1714060259010,-614.6,0.00011544,2]
[323512051,1714060259019,-500.0,0.00011544,2]
[323512052,1714060259029,-500.0,0.00011544,2]
[323512053,1714060259038,-500.0,0.00011544,2]
[323512054,1714060259047,-500.0,0.00011544,2]
[323512055,1714060259057,-500.0,0.00011544,2]
[323512056,1714060259067,-500.0,0.00011546,2]
[323512057,1714060259076,-500.0,0.00011547,2]
[323512058,1714060259086,-150.0,0.00011549,2]
[323512059,1714060259096,-150.0,0.0001155,2]
[323512060,1714060259106,-150.0,0.00011553,2]
[323512061,1714060259117,-150.0,0.00011553,2]
[323512062,1714060259129,-150.0,0.00011554,2]
[323512063,1714060259138,-150.0,0.00011556,2]
[323512064,1714060259147,-150.0,0.0001156,2]
[323512065,1714060259156,-150.0,0.0001156,2]
[323512066,1714060259167,-150.0,0.00011564,2]
[323512067,1714060259176,-150.0,0.00011567,2]
[323512068,1714060259185,-1478.33013836,0.00011568,2]
[323512069,1714060259196,-150.0,0.00011571,2]
[323512070,1714060259204,-150.0,0.00011575,2]
[323512071,1714060259213,-150.0,0.0001158,2]
[323512072,1714060259223,-150.0,0.00011581,2]
[323512073,1714060259232,-150.0,0.00011582,2]
[323512074,1714060259242,-150.0,0.00011587,2]
[323512075,1714060259252,-150.0,0.00011587,2]
[323512076,1714060259261,-150.0,0.00011589,2]
[323512077,1714060259271,-150.0,0.00011593,2]
[323512078,1714060259281,-150.0,0.00011593,2]
[323512079,1714060259290,-150.0,0.00011595,2]
[323512080,1714060259300,-150.0,0.00011596,2]
[323512081,1714060259309,-150.0,0.00011599,2]
[323512082,1714060259318,-150.0,0.000116,2]
[323512083,1714060259327,-150.0,0.00011602,2]
[323512084,1714060259338,-150.0,0.00011604,2]
[323512085,1714060259347,-150.0,0.00011605,2]
[323512086,1714060259356,-150.0,0.00011612,2]
[323512087,1714060259366,-150.0,0.00011616,2]
[323512088,1714060259375,-150.0,0.00011616,2]
[323512089,1714060259386,-150.0,0.00011617,2]
[323512090,1714060259395,-150.0,0.00011619,2]
[323512091,1714060259404,-150.0,0.00011622,2]
[323512092,1714060259414,-150.0,0.00011626,2]
[323512093,1714060259424,-150.0,0.00011632,2]
[323512094,1714060259433,-1478.33013836,0.00011634,2]
[323512095,1714060259443,-150.0,0.00011635,2]
[323512096,1714060259453,-150.0,0.00011635,2]
[323512097,1714060259462,-150.0,0.00011637,2]
[323512098,1714060259471,-150.0,0.0001164,2]
[323512099,1714060259480,-150.0,0.00011642,2]
[323512100,1714060259491,-150.0,0.00011646,2]
[323512101,1714060259501,-150.0,0.00011653,2]
[323512102,1714060259512,-150.0,0.00011655,2]
[323512103,1714060259522,-150.0,0.00011656,2]
[323512104,1714060259531,-150.0,0.00011656,2]
[323512105,1714060259541,-150.0,0.00011658,2]
[323512106,1714060259550,-150.0,0.00011659,2]
[323512107,1714060259560,-150.0,0.00011661,2]
[323512108,1714060259569,-150.0,0.00011667,2]
[323512109,1714060259578,-150.0,0.00011669,2]
[323512110,1714060259587,-150.0,0.00011684,2]
[323512111,1714060259597,-150.0,0.00011687,2]
[323512112,1714060259606,-150.0,0.00011687,2]
[323512113,1714060259615,-150.0,0.0001169,2]
[323512114,1714060259625,-150.0,0.00011692,2]
[323512115,1714060259634,-150.0,0.00011698,2]
[323512116,1714060259643,-206.13,0.000117,2]
[323512117,1714060259652,-150.0,0.000117,2]
[323512118,1714060259661,-1478.33013836,0.00011701,2]
[323512119,1714060259670,-150.0,0.00011702,2]
[323512120,1714060259679,-150.0,0.00011706,2]
[323512121,1714060259688,-150.0,0.00011707,2]
[323512122,1714060259697,-150.0,0.00011711,2]
[323512123,1714060259706,-150.0,0.00011712,2]
[323512124,1714060259716,-150.0,0.00011712,2]
[323512125,1714060259725,-150.0,0.00011715,2]
[323512126,1714060259735,-150.0,0.00011716,2]
[323512127,1714060259746,-150.0,0.00011719,2]
[323512128,1714060259756,-150.0,0.00011721,2]
[323512129,1714060259765,-300.0,0.00011726,2]
[323512130,1714060259774,-150.0,0.00011726,2]
[323512131,1714060259783,-150.0,0.00011727,2]
[323512132,1714060259793,-1478.33013836,0.00011767,2]
[323512133,1714060259802,-1019.20801255,0.00011769,2]
[323512134,1714060259811,-1500.0,0.00011775,2]
[323512135,1714060259821,-500.0,0.0001178,2]
[323512136,1714060259831,-500.0,0.0001178,2]
[323512137,1714060259840,-150.0,0.00011803,2]
[323512138,1714060259849,-4804.4547049,0.00011815,2]
[323512139,1714060259859,-687.13467086,0.00011815,2]
[323512140,1714060259867,-209.90057592,0.00011815,2]
[323512141,1714060259876,-323.93578704,0.00011815,2]
[323512142,1714060259886,-7338.41932417,0.00011815,2]
[323512143,1714060259895,-1233.01,0.00011815,2]
[323512144,1714060259903,-500.0,0.00011815,2]
[323512145,1714060259913,-1177.58,0.00011815,2]
[323512146,1714060259922,-721.68,0.00011815,2]